bitfinex/quotes_SOLUSD_20240814
["timestamp","ask_amount","ask_price","bid_price","bid_amount"]
[1723634307994,15.6474,147.38,147.32,0.12549]
[1723634308293,15.6474,147.38,147.32,0.25098]
[1723634308697,15.6474,147.38,147.32,0.12549]
[1723634308994,15.6474,147.38,147.29,20.0]
[1723634310293,15.6474,147.38,147.3,45.37647]
[1723634310597,6.2631,147.37,147.3,0.37647]
[1723634310887,6.2631,147.37,147.3,0.12549]
[1723634311984,18.6631,147.37,147.3,0.12549]
[1723634312691,6.2631,147.37,147.3,12.52549]
[1723634312876,6.2631,147.37,147.32,12.52549]
[1723634313081,6.2631,147.37,147.33,0.12549]
[1723634313304,6.2631,147.37,147.32,0.12549]
[1723634313462,6.2631,147.37,147.32,0.25098]
[1723634314765,18.6631,147.37,147.28,0.12549]
[1723634314980,18.6631,147.37,147.28,45.37647]
[1723634315190,18.6631,147.37,147.29,20.12549]
[1723634315692,18.6631,147.37,147.29,0.12549]
[1723634316393,18.6631,147.37,147.3,0.12549]
[1723634316586,18.6631,147.37,147.29,45.25098]
[1723634317277,12.4,147.35,147.29,0.12549]
[1723634317466,16.3182,147.34,147.27,12.4]
[1723634317668,6.6229,147.33,147.25,12.4]
[1723634317895,6.6229,147.33,147.26,20.0]
[1723634318072,6.6229,147.33,147.25,12.4]
[1723634319686,6.6229,147.33,147.26,45.50196]
[1723634325695,19.0229,147.33,147.26,45.50196]
[1723634326202,19.0229,147.33,147.26,0.50196]
[1723634326797,15.7249,147.32,147.21,7.0937549]
[1723634327001,15.7249,147.32,147.23,0.12549]
[1723634327305,18.7389,147.31,147.22,20.0]
[1723634327482,15.5516,147.3,147.21,12.4]
[1723634327887,15.5516,147.3,147.2,12.4]
[1723634328691,15.5516,147.3,147.21,45.50196]
[1723634328895,15.5516,147.3,147.21,0.37647]
[1723634329588,15.5516,147.3,147.21,20.37647]
[1723634330213,15.5516,147.3,147.22,0.25098]
[1723634330421,15.5516,147.3,147.23,0.25098]
[1723634331291,15.5516,147.3,147.24,0.12549]
[1723634331596,15.5516,147.3,147.24,12.65098]
[1723634331803,15.5516,147.3,147.25,45.25098]
[1723634335586,15.5516,147.3,147.24,12.52549]
[1723634335785,15.5516,147.3,147.21,69.6]
[1723634335786,15.5516,147.3,147.23,12.52549]
[1723634336012,15.5516,147.3,147.24,0.12549]
[1723634337628,15.5516,147.3,147.28,0.12549]
[1723634337919,15.5516,147.3,147.25,0.12549]
[1723634338129,15.5516,147.3,147.26,12.4]
[1723634338816,15.5516,147.3,147.27,45.50196]
[1723634339218,15.5516,147.3,147.28,12.4]
[1723634339513,15.5516,147.3,147.29,0.12549]
[1723634340422,15.5516,147.3,147.28,12.4]
[1723634341127,6.3389,147.31,147.28,12.4]
[1723634341795,6.3389,147.31,147.27,45.50196]
[1723634342125,6.3389,147.31,147.27,0.25098]
[1723634342336,6.3389,147.31,147.27,0.12549]
[1723634342531,6.3389,147.31,147.23,12.4]
[1723634342702,6.3389,147.31,147.24,65.25098]
[1723634343198,6.3389,147.31,147.24,65.12549]
[1723634344440,12.4,147.29,147.19,7.08969794]
[1723634344747,15.3705,147.3,147.16,22.2]
[1723634344748,6.4301,147.26,147.17,20.53579668]
[1723634344915,27.8078,147.25,147.15,12.4]
[1723634345538,15.4078,147.25,147.17,12.4]
[1723634345931,15.4078,147.25,147.17,31.04]
[1723634346115,15.4078,147.25,147.18,0.25098]
[1723634346310,15.4078,147.25,147.19,0.25098]
[1723634346616,15.4078,147.25,147.2,0.25098]
[1723634348141,15.4078,147.25,147.21,0.25098]
[1723634348439,15.4078,147.25,147.21,0.12549]
[1723634348641,15.4078,147.25,147.21,0.25098]
[1723634349613,15.4078,147.25,147.21,0.12549]
[1723634349946,15.4078,147.25,147.2,45.12549]
[1723634350242,15.4078,147.25,147.2,0.12549]
[1723634350418,15.4078,147.25,147.21,0.12549]
[1723634350817,15.4078,147.25,147.2,20.12549]
[1723634352048,15.4078,147.25,147.2,20.0]
[1723634352222,15.4078,147.25,147.18,20.12549]
[1723634352739,15.4078,147.25,147.19,0.12549]
[1723634352913,15.4078,147.25,147.18,45.50196]
[1723634353414,15.4078,147.25,147.14,31.04]
[1723634354019,15.4078,147.25,147.16,31.04]
[1723634354622,15.4078,147.25,147.17,0.12549]
[1723634354929,15.4078,147.25,147.17,45.50196]
[1723634355138,15.4078,147.25,147.17,45.37647]
[1723634355612,15.4078,147.25,147.14,31.04]
[1723634356848,15.4078,147.25,147.15,0.12549]
[1723634357054,15.4078,147.25,147.15,20.12549]
[1723634357353,15.4078,147.25,147.17,0.12549]
[1723634357519,15.4078,147.25,147.17,0.37647]
[1723634360556,15.4078,147.25,147.18,0.12549]
[1723634360735,15.4078,147.25,147.18,45.0]
[1723634361435,6.0725,147.24,147.15,31.04]
[1723634361644,6.0725,147.24,147.16,20.0]
[1723634362846,6.0725,147.24,147.17,45.50196]
[1723634363049,6.0725,147.24,147.17,76.54196]
[1723634363359,6.0725,147.24,147.19,31.04]
[1723634364659,6.0725,147.24,147.19,0.12549]
[1723634364861,6.0725,147.24,147.19,45.50196]
[1723634365853,6.0725,147.24,147.19,57.91196]
[1723634366746,6.0725,147.24,147.19,12.41]
[1723634368059,6.0725,147.24,147.18,20.0]
[1723634369137,18.4825,147.24,147.11,7.09077242]
[1723634369334,18.4825,147.24,147.14,12.41]
[1723634369879,18.4825,147.24,147.16,12.41]
[1723634370237,6.0725,147.24,147.16,12.41]
[1723634370648,15.3798,147.23,147.16,12.41]
[1723634373067,15.3798,147.23,147.17,0.12549]
[1723634373268,15.3798,147.23,147.18,12.41]
[1723634376952,15.3798,147.23,147.17,45.37647]
[1723634377151,15.3798,147.23,147.17,0.12549]
[1723634379078,15.3798,147.23,147.16,12.41]
[1723634381868,6.2327,147.22,147.15,0.12549]
[1723634382067,15.7657,147.21,147.15,0.12549]
[1723634382259,15.7657,147.21,147.09,18.35820967]
[1723634382260,15.7657,147.21,147.13,12.41]
[1723634382456,15.7657,147.21,147.14,45.25098]
[1723634383469,15.7657,147.21,147.14,45.12549]
[1723634384454,6.4356,147.2,147.13,12.53549]
[1723634385483,15.2611,147.19,147.09,6.19558751]
[1723634385674,15.2611,147.19,147.11,12.41]
[1723634385851,15.2611,147.17,147.12,20.0]
[1723634386175,15.2611,147.17,147.1,20.0]
[1723634386682,15.2611,147.17,147.08,7.08599723]
[1723634386683,15.2611,147.17,147.09,32.41]
[1723634387579,15.2611,147.17,147.11,12.41]
[1723634387752,23.109,147.15,147.12,3.3334]
[1723634388082,23.109,147.15,147.07,2.66841161]
[1723634388578,6.4612,147.13,147.07,15.07841161]
[1723634388781,6.4612,147.13,147.09,12.41]
[1723634390476,6.4612,147.13,147.01,16.44287057]
[1723634390784,6.4612,147.13,147.07,12.41]
[1723634394268,6.4612,147.13,147.01,7.0851694]
[1723634394466,6.4612,147.13,147.04,12.41]
[1723634394780,16.5583,147.11,147.04,12.41]
[1723634395491,6.6596,147.1,146.98,7.09683909]
[1723634395795,6.6596,147.1,147.02,12.41]
[1723634397290,6.6596,147.1,147.04,12.41]
[1723634398870,6.6596,147.1,147.03,0.12549]
[1723634399502,6.6596,147.1,147.02,12.41]
[1723634400197,19.0696,147.1,147.0,12.41]
[1723634400374,19.0696,147.1,147.01,20.0]
[1723634400794,15.8058,147.09,147.01,20.0]
[1723634401487,15.8058,147.09,147.04,12.41]
[1723634401691,15.8058,147.09,147.06,12.41]
[1723634404295,15.8058,147.09,147.05,0.25098]
[1723634404500,15.8058,147.09,147.05,45.25098]
[1723634404797,15.8058,147.09,147.04,12.41]
[1723634404798,15.8058,147.09,147.02,0.12549]
[1723634404969,15.8058,147.09,147.02,57.91196]
[1723634405169,15.8058,147.09,147.03,20.0]
[1723634406897,15.8058,147.09,146.97,27.05244975]
[1723634406898,15.8058,147.09,147.0,12.41]
[1723634407100,15.8058,147.09,146.97,24.29282673]
[1723634407101,15.8058,147.09,146.99,12.41]
[1723634407976,15.8058,147.09,146.98,31.12]
[1723634408197,15.8058,147.09,146.99,20.37647]
[1723634408384,15.8058,147.09,147.0,0.25098]
[1723634409202,15.8058,147.09,147.01,0.37647]
[1723634409421,15.8058,147.09,147.02,0.12549]
[1723634410007,15.8058,147.09,147.05,0.12549]
[1723634410175,15.8058,147.09,147.05,65.50196]
[1723634410995,6.6596,147.1,147.05,65.50196]
[1723634411173,6.6596,147.1,147.07,0.12549]
[1723634411380,15.9477,147.13,147.07,45.50196]
[1723634411381,22.3585,147.13,147.07,45.50196]
[1723634414689,22.3585,147.13,147.07,0.50196]
[1723634415027,22.3585,147.13,147.07,20.50196]
[1723634415314,22.3585,147.13,147.09,0.12549]
[1723634415473,22.3585,147.13,147.07,20.37647]
[1723634415474,22.3585,147.13,147.07,0.37647]
[1723634415815,22.3585,147.13,147.07,20.0]
[1723634416104,22.3585,147.13,147.05,0.12549]
[1723634416280,22.3585,147.13,147.04,0.25098]
[1723634416679,23.099528,147.13,147.04,0.25098]
[1723634416882,23.099528,147.13,147.05,0.25098]
[1723634417297,23.099528,147.13,147.05,20.25098]
[1723634419195,54.219528,147.13,147.05,20.12549]
[1723634419813,54.219528,147.13,147.05,0.25098]
[1723634420284,54.219528,147.13,147.04,45.25098]
[1723634420489,6.451,147.12,147.04,45.25098]
[1723634424313,6.451,147.12,147.06,0.12549]
[1723634424603,6.451,147.12,147.05,0.25098]
[1723634425403,6.451,147.12,147.04,45.25098]
[1723634425588,15.5497,147.11,147.04,0.25098]
[1723634425906,6.1396,147.1,147.01,20.0]
[1723634426092,22.2893,147.1,147.01,20.0]
[1723634426296,22.2893,147.1,146.99,20.0]
[1723634427099,22.2893,147.1,147.01,0.12549]
[1723634427296,22.2893,147.1,147.01,20.12549]
[1723634427500,22.2893,147.1,147.02,45.37647]
[1723634429122,6.1526,147.09,147.01,20.12549]
[1723634429291,6.1526,147.09,147.0,0.25098]
[1723634429489,6.1526,147.09,147.0,45.12549]
[1723634429728,6.1526,147.09,147.01,20.0]
[1723634429900,12.45,147.08,147.01,20.0]
[1723634430096,12.45,147.08,147.0,45.12549]
[1723634430299,12.45,147.08,147.01,20.0]
[1723634432010,6.1526,147.09,147.01,20.0]
[1723634432212,6.1526,147.09,147.02,0.37647]
[1723634432517,6.1526,147.09,147.02,45.50196]
[1723634433221,6.1526,147.09,147.02,76.62196]
[1723634433918,6.1526,147.09,146.93,80.49840801]
[1723634433919,16.3586,147.08,146.96,16.2119]
[1723634434214,6.2322,147.07,146.97,8.16989518]
[1723634434600,6.2322,147.07,146.94,39.4104066]
[1723634434797,6.5108,147.05,146.95,8.17100978]
[1723634435602,6.5108,147.05,146.96,45.50196]
[1723634435817,6.5108,147.05,146.97,0.12549]
[1723634436901,6.5108,147.05,146.97,20.0]
[1723634437103,6.5108,147.05,146.95,20.0]
[1723634438417,6.5108,147.05,146.96,45.25098]
[1723634438725,6.5108,147.05,146.97,0.12549]
[1723634438938,6.5108,147.05,146.97,20.25098]
[1723634439417,6.4249,147.03,146.94,31.12]
[1723634439623,6.4249,147.03,146.92,31.12]
[1723634439792,15.0507,147.02,146.95,20.0]
[1723634440212,15.0507,147.02,146.93,20.0]
[1723634440410,15.0507,147.02,146.94,8.17209555]
[1723634440605,15.0507,147.02,146.95,20.0]
[1723634441222,15.0507,147.02,146.94,31.37098]
[1723634441418,15.0507,147.02,146.96,0.12549]
[1723634441630,15.0507,147.02,146.96,0.50196]
[1723634443332,15.0507,147.02,146.95,20.0]
[1723634443534,15.0507,147.02,146.92,20.0]
[1723634443740,15.0507,147.02,146.93,8.17196729]
[1723634444222,15.0507,147.02,146.94,20.0]
[1723634444737,6.6629,147.01,146.94,20.0]
[1723634444916,6.6629,147.01,146.91,20.0]
[1723634445116,6.6629,147.01,146.92,0.12549]
[1723634445818,6.6629,147.01,146.92,45.12549]
[1723634446025,15.377,147.0,146.93,20.0]
[1723634446235,15.377,147.0,146.91,20.0]
[1723634446543,15.377,147.0,146.91,27.86995597]
[1723634446716,15.377,147.0,146.92,7.86995597]
[1723634446919,15.377,147.0,146.91,20.0]
[1723634447233,15.377,147.0,146.92,0.12549]
[1723634447627,15.377,147.0,146.92,45.12549]
[1723634447825,15.377,147.0,146.93,20.25098]
[1723634448231,15.377,147.0,146.93,0.25098]
[1723634448533,15.377,147.0,146.93,20.25098]
[1723634449619,15.377,147.0,146.93,20.12549]
[1723634449827,15.377,147.0,146.93,20.0]
[1723634451339,6.4052,146.99,146.88,1.1847586]
[1723634451648,15.0103,146.98,146.88,20.0]
[1723634452344,15.0103,146.98,146.9,31.12]
[1723634452525,15.0103,146.98,146.91,20.0]
[1723634453444,15.0103,146.98,146.92,0.12549]
[1723634453822,15.0103,146.98,146.92,76.37098]
[1723634455036,15.0103,146.98,146.93,0.25098]
[1723634455547,15.0103,146.98,146.92,76.37098]
[1723634457742,15.0103,146.98,146.93,0.25098]
[1723634457956,15.0103,146.98,146.94,12.46]
[1723634461523,15.0103,146.98,146.96,12.46]
[1723634461745,6.4052,146.99,146.97,0.12549]
[1723634461950,6.4052,146.99,146.98,12.46]
[1723634462152,15.9111,147.02,146.98,12.46]
[1723634469856,15.9111,147.02,147.0,12.46]
[1723634470656,6.5922,147.03,147.0,12.46]
[1723634471227,6.5922,147.03,147.02,12.46]
[1723634472467,15.1432,147.06,147.02,12.46]
[1723634475765,15.1432,147.06,147.0,12.46]
[1723634477634,15.1432,147.06,146.99,0.37647]
[1723634477852,15.1432,147.06,147.01,12.46]
[1723634480473,15.1432,147.06,147.03,12.46]
[1723634483978,6.4259,147.07,147.03,12.46]
[1723634484174,6.4259,147.07,147.05,12.46]
[1723634484651,21.7091,147.1,147.05,12.46]
[1723634485281,21.7091,147.1,147.07,12.46]
[1723634485570,6.414,147.1,147.07,12.46]
[1723634486360,6.414,147.1,147.05,12.46]
[1723634487670,6.414,147.1,147.02,0.12549]
[1723634487873,6.414,147.1,147.04,0.12549]
[1723634488073,6.414,147.1,147.04,0.37647]
[1723634488372,6.414,147.1,147.04,45.37647]
[1723634488975,6.414,147.1,147.04,12.58549]
[1723634489163,6.414,147.1,147.02,12.58549]
[1723634489665,15.4404,147.09,147.02,12.58549]
[1723634491969,15.4404,147.09,147.04,12.46]
[1723634502266,15.4404,147.09,147.05,45.25098]
[1723634502769,6.414,147.1,147.06,12.46]
[1723634502971,6.414,147.1,147.08,12.46]
[1723634505261,15.5513,147.12,147.08,12.46]
[1723634505487,15.5513,147.12,147.1,12.46]
[1723634505777,7.169028,147.13,147.1,12.46]
[1723634505964,0.741028,147.13,147.1,12.46]
[1723634506370,0.741028,147.13,147.11,1.03584773]
[1723634506760,0.741028,147.13,147.12,12.46]
[1723634508068,0.741028,147.13,147.11,12.46]
[1723634509888,0.741028,147.13,147.09,0.12549]
[1723634509889,0.741028,147.13,147.09,12.46]
[1723634512069,0.741028,147.13,147.07,12.58549]
[1723634513383,16.4401,147.11,147.02,16.2132]
[1723634513565,16.4401,147.11,147.04,12.46]
[1723634513995,16.4401,147.11,147.06,12.46]
[1723634514281,6.5444,147.12,147.08,12.46]
[1723634515793,0.741028,147.13,147.1,12.46]
[1723634515995,0.741028,147.13,147.07,50.09098]
[1723634515996,0.741028,147.13,147.12,12.58549]
[1723634516164,0.741028,147.13,147.12,57.83647]
[1723634517176,0.741028,147.13,147.12,12.58549]
[1723634517482,0.741028,147.13,147.12,12.71098]
[1723634517667,23.1503,147.19,147.12,77.96196]
[1723634517868,23.1503,147.19,147.14,31.05]
[1723634518990,23.1503,147.19,147.15,0.12549]
[1723634519496,23.1503,147.19,147.13,45.12549]
[1723634519870,23.1503,147.19,147.12,31.42647]
[1723634520088,23.1503,147.19,147.13,0.12549]
[1723634520302,23.1503,147.19,147.13,45.50196]
[1723634520502,23.1503,147.19,147.15,0.12549]
[1723634520702,2.63534609,147.25,147.16,31.05]
[1723634520703,6.3255,147.25,147.16,31.05]
[1723634520996,6.3255,147.25,147.17,0.50196]
[1723634521200,6.3255,147.25,147.19,0.12549]
[1723634521399,6.3255,147.25,147.19,45.50196]
[1723634522277,6.3255,147.25,147.2,31.05]
[1723634522469,6.3255,147.25,147.22,0.12549]
[1723634522674,6.3255,147.25,147.22,31.30098]
[1723634522874,6.3255,147.25,147.23,45.25098]
[1723634523093,6.3255,147.25,147.22,31.30098]
[1723634523978,6.3255,147.25,147.22,0.25098]
[1723634524177,6.3255,147.25,147.21,45.25098]
[1723634524702,16.2615,147.26,147.22,0.37647]
[1723634525105,6.4552,147.28,147.22,31.42647]
[1723634527115,6.4552,147.28,147.18,31.17549]
[1723634527417,31.05,147.25,147.13,31.05]
[1723634527715,6.1423,147.24,147.13,31.05]
[1723634528800,6.1423,147.24,147.14,45.50196]
[1723634528993,6.1423,147.24,147.14,45.37647]
[1723634529203,6.1423,147.24,147.13,31.05]
[1723634529782,6.1423,147.24,147.14,20.0]
[1723634530311,6.1423,147.24,147.15,45.0]
[1723634531522,37.1923,147.24,147.14,0.37647]
[1723634531802,0.12549,147.25,147.09,31.05]
[1723634531803,6.3852,147.21,147.09,31.05]
[1723634532010,6.3852,147.21,147.1,20.0]
[1723634532383,6.3852,147.21,147.11,31.05]
[1723634532583,6.3852,147.21,147.12,20.0]
[1723634533081,6.3852,147.21,147.11,31.05]
[1723634533310,31.05,147.2,147.09,31.05]
[1723634533487,31.05,147.2,147.05,16.2022]
[1723634533488,31.05,147.2,147.07,31.05]
[1723634533697,15.7781,147.18,147.07,31.05]
[1723634534812,15.7781,147.18,147.09,0.12549]
[1723634535115,15.7781,147.18,147.09,0.25098]
[1723634535317,15.7781,147.18,147.08,20.25098]
[1723634536205,15.7781,147.18,147.09,0.12549]
[1723634536393,15.7781,147.18,147.09,0.25098]
[1723634536595,15.7781,147.18,147.09,45.25098]
[1723634537418,15.7781,147.18,147.09,0.25098]
[1723634538411,15.7781,147.18,147.1,0.12549]
[1723634538620,15.7781,147.18,147.1,0.25098]
[1723634538917,15.7781,147.18,147.11,0.12549]
[1723634540010,15.7781,147.18,147.12,0.12549]
[1723634540213,15.7781,147.18,147.14,0.12549]
[1723634540404,15.7781,147.18,147.14,0.25098]
[1723634540817,15.7781,147.18,147.14,45.25098]
[1723634541488,15.7781,147.18,147.15,0.12549]
[1723634541824,15.7781,147.18,147.15,0.25098]
[1723634542544,15.7781,147.18,147.15,0.12549]
[1723634542694,15.7781,147.18,147.14,45.12549]
[1723634543320,15.7781,147.18,147.15,0.25098]
[1723634544110,6.3852,147.21,147.16,0.25098]
[1723634544825,6.3852,147.21,147.17,0.25098]
[1723634545045,6.3852,147.21,147.17,0.12549]
[1723634545330,6.3852,147.21,147.17,0.37647]
[1723634546801,6.3852,147.21,147.17,0.25098]
[1723634547006,6.3852,147.21,147.13,31.05]
[1723634547202,6.3852,147.21,147.14,20.0]
[1723634547723,6.3852,147.21,147.12,20.0]
[1723634548044,6.3852,147.21,147.09,46.9322]
[1723634549308,6.3852,147.21,147.1,20.0]
[1723634550235,6.3852,147.21,147.11,0.12549]
[1723634550603,6.3852,147.21,147.12,0.12549]
[1723634550921,6.3852,147.21,147.12,20.37647]
[1723634552005,6.3852,147.21,147.12,0.12549]
[1723634552210,31.05,147.2,147.11,45.12549]
[1723634554419,9.096556,147.21,147.12,0.12549]
[1723634554615,9.096556,147.21,147.12,0.37647]
[1723634554927,9.096556,147.21,147.11,45.12549]
[1723634555119,9.096556,147.21,147.11,0.12549]
[1723634555443,9.096556,147.21,147.11,20.25098]
[1723634556342,31.05,147.18,147.07,31.05]
[1723634556519,6.171,147.17,147.08,20.0]
[1723634556719,6.171,147.17,147.05,31.05]
[1723634557611,6.171,147.17,147.06,0.12549]
[1723634557836,6.171,147.17,147.06,65.50196]
[1723634559811,6.171,147.17,147.07,31.05]
[1723634560017,6.171,147.17,147.09,31.17549]
[1723634560213,6.171,147.17,147.11,0.12549]
[1723634565725,6.171,147.17,147.1,45.37647]
[1723634567046,6.171,147.17,147.11,0.12549]
[1723634574958,6.171,147.17,147.1,45.37647]
[1723634575141,6.171,147.17,147.1,0.37647]
[1723634575340,6.171,147.17,147.06,31.05]
[1723634575341,16.4975,147.16,147.06,31.05]
[1723634575548,6.6299,147.15,147.07,8.16623151]
[1723634575854,6.6299,147.15,147.03,31.05]
[1723634575855,15.6009,147.14,147.03,31.05]
[1723634576229,15.6009,147.14,147.04,8.16715107]
[1723634576838,15.6009,147.14,147.05,31.05]
[1723634577049,15.6009,147.14,147.07,0.12549]
[1723634584133,6.0233,147.13,147.03,31.05]
[1723634584339,6.0233,147.13,147.04,20.0]
[1723634585238,6.0233,147.13,147.05,45.0]
[1723634585454,6.0233,147.13,147.06,0.25098]
[1723634585738,6.0233,147.13,147.07,0.25098]
[1723634588239,6.0233,147.13,147.08,0.25098]
[1723634588571,6.0233,147.13,147.09,0.25098]
[1723634589061,6.0233,147.13,147.1,0.12549]
[1723634589529,6.0233,147.13,147.1,0.25098]
[1723634589734,6.0233,147.13,147.11,0.25098]
[1723634590042,6.0233,147.13,147.12,0.12549]
[1723634590249,6.0233,147.13,147.12,0.25098]
[1723634590436,6.0233,147.13,147.12,0.50196]
[1723634592242,15.6009,147.14,147.12,0.50196]
[1723634592438,6.2761,147.17,147.13,0.25098]
[1723634593635,6.2761,147.17,147.13,0.12549]
[1723634593844,6.2761,147.17,147.12,45.25098]
[1723634594243,6.2761,147.17,147.13,0.12549]
[1723634596242,6.2761,147.17,147.12,45.12549]
[1723634596443,6.2761,147.17,147.08,0.12549]
[1723634596667,6.2761,147.17,147.08,65.50196]
[1723634602980,16.029,147.16,147.04,15.7295]
[1723634603181,16.029,147.13,147.05,8.1659088]
[1723634603473,16.029,147.13,147.02,32.23381149]
[1723634603474,47.079,147.13,147.02,31.05]
[1723634603683,47.079,147.13,147.03,8.16709249]
[1723634604758,47.079,147.13,147.05,0.12549]
[1723634604957,47.079,147.13,147.05,0.37647]
[1723634605164,47.079,147.13,147.06,0.12549]
[1723634605376,6.1551,147.12,147.06,0.37647]
[1723634608069,6.1551,147.12,147.06,0.12549]
[1723634608255,6.1551,147.12,147.05,0.25098]
[1723634612184,6.1551,147.12,147.07,0.12549]
[1723634612385,6.1551,147.12,147.07,0.25098]
[1723634612592,6.1551,147.12,147.09,0.12549]
[1723634612763,6.1551,147.12,147.09,0.25098]
[1723634612967,6.1551,147.12,147.1,0.25098]
[1723634614187,6.1551,147.12,147.09,0.25098]
[1723634615379,6.1551,147.12,147.09,0.12549]
[1723634615585,6.1551,147.12,147.09,0.25098]
[1723634617794,6.1551,147.12,147.08,45.25098]
[1723634618788,6.1551,147.12,147.09,0.12549]
[1723634619496,6.1551,147.12,147.09,0.25098]
[1723634621302,6.1551,147.12,147.1,0.12549]
[1723634621603,6.1551,147.12,147.1,0.25098]
[1723634621807,6.1551,147.12,147.11,0.37647]
[1723634621985,6.1551,147.12,147.11,0.50196]
[1723634623299,6.1551,147.12,147.11,0.37647]
[1723634626412,6.1551,147.12,147.11,0.50196]
[1723634628307,16.029,147.13,147.11,0.50196]
[1723634628522,16.029,147.13,147.11,0.37647]
[1723634629531,16.029,147.13,147.11,0.12549]
[1723634629823,16.029,147.13,147.1,45.0]
[1723634630209,16.029,147.13,147.11,0.12549]
[1723634630617,16.029,147.13,147.11,0.50196]
[1723634633834,22.1673,147.16,147.11,0.50196]
[1723634641036,22.1673,147.16,147.11,0.25098]
[1723634641208,22.1673,147.16,147.11,0.12549]
[1723634643340,22.1673,147.16,147.11,0.25098]
[1723634643804,6.0609,147.16,147.11,12.68098]
[1723634644011,21.6368,147.2,147.12,45.37647]
[1723634644244,21.6368,147.2,147.13,0.12549]
[1723634645535,6.0228,147.2,147.15,12.43]
[1723634645828,6.0228,147.2,147.13,1.1994319]
[1723634645829,6.3346,147.24,147.18,0.12549]
[1723634646037,6.3346,147.24,147.18,46.44970311]
[1723634646540,6.3346,147.24,147.2,0.12549]
[1723634646832,12.43,147.26,147.14,15.5739]
[1723634647041,12.43,147.26,147.17,0.12549]
[1723634648139,12.43,147.24,147.17,0.12549]
[1723634648435,12.43,147.24,147.16,45.37647]
[1723634649528,21.3942,147.27,147.16,45.37647]
[1723634649724,12.43,147.25,147.17,0.12549]
[1723634652460,21.3942,147.27,147.19,0.12549]
[1723634652743,21.3942,147.27,147.21,0.12549]
[1723634652744,6.2868,147.27,147.21,0.12549]
[1723634652918,12.43,147.3,147.21,45.50196]
[1723634653232,12.43,147.3,147.23,0.12549]
[1723634653442,12.43,147.3,147.23,45.50196]
[1723634656518,12.43,147.3,147.23,45.37647]
[1723634656716,12.43,147.3,147.23,45.12549]
[1723634658145,12.43,147.3,147.23,0.12549]
[1723634658314,12.43,147.3,147.23,0.25098]
[1723634659015,12.43,147.3,147.24,0.25098]
[1723634659240,12.43,147.3,147.25,0.25098]
[1723634659428,12.43,147.3,147.24,0.12549]
[1723634659635,12.43,147.3,147.23,0.12549]
[1723634659836,12.43,147.3,147.23,0.37647]
[1723634660442,12.43,147.3,147.24,0.12549]
[1723634660742,12.43,147.3,147.24,0.25098]
[1723634662037,12.43,147.3,147.24,0.12549]
[1723634662519,22.3378,147.31,147.23,0.12549]
[1723634662520,12.43,147.28,147.23,0.12549]
[1723634662716,12.43,147.28,147.22,45.0]
[1723634664117,12.43,147.3,147.23,0.50196]
[1723634664317,22.3378,147.31,147.23,0.50196]
[1723634664518,12.43,147.31,147.23,0.50196]
[1723634666535,12.43,147.32,147.23,0.50196]
[1723634667132,12.43,147.32,147.23,12.93196]